[Event "Titled Tuesday Blitz October 25 Early 2022"]
[White "Maghsoodloo, Parham"]
[Black "Rohith Krishna S"]
[WhiteFideId "12539929"]
[BlackFideId "46617051"]
[WhiteElo "2676"]
[BlackElo "2270"]
[Result "1-0"]
[Round "07"]
[TimeControl "180+1"]
[Date "2022.10.25"]
[WhiteClock "0:00:06"]
[BlackClock "0:00:30"]

1. d4 {[%clk 0:03:00]}  Nf6 {[%clk 0:02:59]} 2. c4 {[%clk 0:03:01]}  e6 {[%clk 0:02:59]} 3. Nf3 {[%clk 0:03:02]}  d5 {[%clk 0:02:59]} 4. g3 {[%clk 0:03:02]}  Be7 {[%clk 0:02:58]} 5. Bg2 {[%clk 0:03:03]}  dxc4 {[%clk 0:02:56]} 6. O-O {[%clk 0:03:03]}  Nc6 {[%clk 0:02:53]} 7. Bg5 {[%clk 0:03:00]}  O-O {[%clk 0:02:53]} 8. e3 {[%clk 0:02:58]}  Rb8 {[%clk 0:02:51]} 9. a4 {[%clk 0:02:57]}  Na5 {[%clk 0:02:50]} 10. Nbd2 {[%clk 0:02:57]}  b6 {[%clk 0:02:49]} 11. Ne5 {[%clk 0:02:57]}  Ba6 {[%clk 0:02:49]} 12. Qc2 {[%clk 0:02:48]}  Nd7 {[%clk 0:02:46]} 13. Bxe7 {[%clk 0:02:46]}  Qxe7 {[%clk 0:02:47]} 14. Nexc4 {[%clk 0:02:46]}  Nxc4 {[%clk 0:02:45]} 15. Nxc4 {[%clk 0:02:47]}  c5 {[%clk 0:02:46]} 16. a5 {[%clk 0:02:36]}  cxd4 {[%clk 0:02:37]} 17. axb6 {[%clk 0:02:35]}  Bxc4 {[%clk 0:02:37]} 18. Qxc4 {[%clk 0:02:35]}  Nxb6 {[%clk 0:02:37]} 19. Qxd4 {[%clk 0:02:36]}  Rfd8 {[%clk 0:02:34]} 20. Qg4 {[%clk 0:02:23]}  Nd5 {[%clk 0:02:33]} 21. Qe2 {[%clk 0:02:20]}  Qb4 {[%clk 0:02:28]} 22. Bxd5 {[%clk 0:01:52]}  Rxd5 {[%clk 0:02:22]} 23. Rxa7 {[%clk 0:01:52]}  g6 {[%clk 0:02:16]} 24. Rb1 {[%clk 0:01:31]}  Qb3 {[%clk 0:01:57]} 25. Rc7 {[%clk 0:01:10]}  Rdb5 {[%clk 0:01:39]} 26. Qc2 {[%clk 0:01:06]}  Qxc2 {[%clk 0:01:28]} 27. Rxc2 {[%clk 0:01:06]}  Rb3 {[%clk 0:01:29]} 28. Kf1 {[%clk 0:01:05]}  h5 {[%clk 0:01:28]} 29. h4 {[%clk 0:01:05]}  Kg7 {[%clk 0:01:29]} 30. Ke2 {[%clk 0:01:05]}  R8b7 {[%clk 0:01:29]} 31. Kd2 {[%clk 0:01:05]}  Rd7+ {[%clk 0:01:29]} 32. Ke2 {[%clk 0:01:02]}  Rdb7 {[%clk 0:01:29]} 33. Kd1 {[%clk 0:01:02]}  Rd7+ {[%clk 0:01:28]} 34. Rd2 {[%clk 0:01:03]}  Rc7 {[%clk 0:01:27]} 35. Rc1 {[%clk 0:01:02]}  Rcb7 {[%clk 0:01:26]} 36. Rcc2 {[%clk 0:01:02]}  Ra7 {[%clk 0:01:26]} 37. Rc3 {[%clk 0:01:02]}  Ra1+ {[%clk 0:01:24]} 38. Kc2 {[%clk 0:01:02]}  Rb7 {[%clk 0:01:25]} 39. b3 {[%clk 0:00:54]}  Rba7 {[%clk 0:01:20]} 40. b4 {[%clk 0:00:41]}  R1a2+ {[%clk 0:01:12]} 41. Kd1 {[%clk 0:00:39]}  Ra1+ {[%clk 0:01:11]} 42. Rc1 {[%clk 0:00:39]}  R1a3 {[%clk 0:01:03]} 43. Rb1 {[%clk 0:00:37]}  Rb7 {[%clk 0:01:03]} 44. b5 {[%clk 0:00:37]}  Ra5 {[%clk 0:01:03]} 45. b6 {[%clk 0:00:36]}  Ra6 {[%clk 0:01:03]} 46. Rdb2 {[%clk 0:00:36]}  Kf6 {[%clk 0:01:04]} 47. Kc2 {[%clk 0:00:35]}  Ke5 {[%clk 0:01:02]} 48. Kd3 {[%clk 0:00:33]}  Kd5 {[%clk 0:01:03]} 49. Rb5+ {[%clk 0:00:32]}  Kc6 {[%clk 0:01:02]} 50. Ke4 {[%clk 0:00:32]}  f6 {[%clk 0:01:01]} 51. f3 {[%clk 0:00:26]}  Raxb6 {[%clk 0:00:57]} 52. Rxb6+ {[%clk 0:00:26]}  Rxb6 {[%clk 0:00:58]} 53. Rxb6+ {[%clk 0:00:26]}  Kxb6 {[%clk 0:00:59]} 54. g4 {[%clk 0:00:26]}  Kc6 {[%clk 0:00:58]} 55. Kd4 {[%clk 0:00:21]}  Kd6 {[%clk 0:00:56]} 56. gxh5 {[%clk 0:00:15]}  gxh5 {[%clk 0:00:56]} 57. Kc4 {[%clk 0:00:14]}  Kc6 {[%clk 0:00:56]} 58. Kb4 {[%clk 0:00:12]}  Kb6 {[%clk 0:00:54]} 59. Kc4 {[%clk 0:00:06]}  Kc6 {[%clk 0:00:54]} 60. Kd4 {[%clk 0:00:06]}  Kd6 {[%clk 0:00:54]} 61. f4 {[%clk 0:00:06]}  e5+ {[%clk 0:00:43]} 62. fxe5+ {[%clk 0:00:05]}  fxe5+ {[%clk 0:00:43]} 63. Kc4 {[%clk 0:00:06]}  Kc6 {[%clk 0:00:30]} 64. e4 {[%clk 0:00:06]} 1-0


[Site "https://www.chess.com"]

[Event "Titled Tuesday Blitz October 25 Early 2022"]
[White "Molina, Roberto Junio Brito"]
[Black "Kamsky, Gata"]
[WhiteFideId "2109450"]
[BlackFideId "2000024"]
[WhiteElo "2388"]
[BlackElo "2666"]
[Result "0-1"]
[Round "07"]
[TimeControl "180+1"]
[Date "2022.10.25"]
[WhiteClock "0:00:34"]
[BlackClock "0:01:47"]

1. d4 {[%clk 0:03:00]}  Nf6 {[%clk 0:02:57]} 2. c4 {[%clk 0:03:01]}  c5 {[%clk 0:02:54]} 3. d5 {[%clk 0:03:00]}  e6 {[%clk 0:02:54]} 4. Nc3 {[%clk 0:03:00]}  exd5 {[%clk 0:02:54]} 5. cxd5 {[%clk 0:03:01]}  d6 {[%clk 0:02:53]} 6. e4 {[%clk 0:03:01]}  a6 {[%clk 0:02:54]} 7. a4 {[%clk 0:03:01]}  g6 {[%clk 0:02:54]} 8. h3 {[%clk 0:03:00]}  Bg7 {[%clk 0:02:54]} 9. Nf3 {[%clk 0:03:01]}  O-O {[%clk 0:02:53]} 10. Bd3 {[%clk 0:03:01]}  Nbd7 {[%clk 0:02:43]} 11. O-O {[%clk 0:03:01]}  Re8 {[%clk 0:02:34]} 12. Bf4 {[%clk 0:03:01]}  Qc7 {[%clk 0:02:33]} 13. Re1 {[%clk 0:02:55]}  Rb8 {[%clk 0:02:29]} 14. Qd2 {[%clk 0:02:01]}  c4 {[%clk 0:02:21]} 15. Bc2 {[%clk 0:02:00]}  b5 {[%clk 0:02:20]} 16. axb5 {[%clk 0:01:59]}  axb5 {[%clk 0:02:19]} 17. e5 {[%clk 0:01:59]}  dxe5 {[%clk 0:02:14]} 18. d6 {[%clk 0:01:56]}  Qc5 {[%clk 0:02:12]} 19. Be3 {[%clk 0:01:46]}  Qc6 {[%clk 0:02:12]} 20. Ra7 {[%clk 0:01:40]}  Bb7 {[%clk 0:02:11]} 21. b4 {[%clk 0:01:32]}  Ra8 {[%clk 0:02:06]} 22. Rea1 {[%clk 0:01:30]}  Rxa7 {[%clk 0:02:03]} 23. Rxa7 {[%clk 0:01:31]}  Bf8 {[%clk 0:01:56]} 24. Ne1 {[%clk 0:01:09]}  Ra8 {[%clk 0:01:54]} 25. Rxa8 {[%clk 0:01:10]}  Bxa8 {[%clk 0:01:53]} 26. f4 {[%clk 0:00:53]}  Qxd6 {[%clk 0:01:50]} 27. Qxd6 {[%clk 0:00:47]}  Bxd6 {[%clk 0:01:50]} 28. fxe5 {[%clk 0:00:47]}  Nxe5 {[%clk 0:01:48]} 29. Nxb5 {[%clk 0:00:46]}  Bxb4 {[%clk 0:01:49]} 30. Bd4 {[%clk 0:00:41]}  Nfd7 {[%clk 0:01:48]} 31. Nc3 {[%clk 0:00:34]}  Nc6 {[%clk 0:01:47]} 0-1


[Site "https://www.chess.com"]

[Event "Titled Tuesday Blitz October 25 Early 2022"]
[White "Ozen, Bahadir"]
[Black "Keymer, Vincent"]
[WhiteFideId "6337058"]
[BlackFideId "12940690"]
[WhiteElo "2503"]
[BlackElo "2600"]
[Result "0-1"]
[Round "07"]
[TimeControl "180+1"]
[Date "2022.10.25"]
[WhiteClock "0:00:02"]
[BlackClock "0:00:02"]

1. g3 {[%clk 0:03:00]}  d5 {[%clk 0:02:59]} 2. Bg2 {[%clk 0:03:01]}  c6 {[%clk 0:02:58]} 3. Nf3 {[%clk 0:03:01]}  Bg4 {[%clk 0:02:58]} 4. O-O {[%clk 0:03:01]}  Nd7 {[%clk 0:02:58]} 5. h3 {[%clk 0:03:01]}  Bh5 {[%clk 0:02:58]} 6. d3 {[%clk 0:03:01]}  Ngf6 {[%clk 0:02:58]} 7. Qe1 {[%clk 0:03:00]}  e5 {[%clk 0:02:58]} 8. e4 {[%clk 0:03:00]}  Bc5 {[%clk 0:02:55]} 9. Nbd2 {[%clk 0:02:34]}  O-O {[%clk 0:02:54]} 10. a4 {[%clk 0:02:33]}  a5 {[%clk 0:02:53]} 11. Nh4 {[%clk 0:02:30]}  Re8 {[%clk 0:02:53]} 12. Nb3 {[%clk 0:02:20]}  Bb6 {[%clk 0:02:51]} 13. Be3 {[%clk 0:02:19]}  Nf8 {[%clk 0:02:44]} 14. Nf5 {[%clk 0:01:47]}  Bg6 {[%clk 0:02:38]} 15. Nh4 {[%clk 0:01:47]}  Bh5 {[%clk 0:02:36]} 16. Nf5 {[%clk 0:01:46]}  Bc7 {[%clk 0:02:28]} 17. c3 {[%clk 0:01:39]}  Ne6 {[%clk 0:02:27]} 18. Qd2 {[%clk 0:01:29]}  Qd7 {[%clk 0:02:18]} 19. Qc2 {[%clk 0:01:29]}  Rad8 {[%clk 0:02:15]} 20. Rae1 {[%clk 0:01:29]}  h6 {[%clk 0:02:08]} 21. f4 {[%clk 0:01:09]}  dxe4 {[%clk 0:00:53]} 22. dxe4 {[%clk 0:01:09]}  Qd3 {[%clk 0:00:43]} 23. Qxd3 {[%clk 0:00:56]}  Rxd3 {[%clk 0:00:44]} 24. fxe5 {[%clk 0:00:46]}  Bxe5 {[%clk 0:00:25]} 25. Nxa5 {[%clk 0:00:41]}  Ra8 {[%clk 0:00:22]} 26. Nxb7 {[%clk 0:00:38]}  Rxa4 {[%clk 0:00:22]} 27. g4 {[%clk 0:00:34]}  Bg6 {[%clk 0:00:22]} 28. Rd1 {[%clk 0:00:29]}  Rxd1 {[%clk 0:00:05]} 29. Rxd1 {[%clk 0:00:30]}  Ra2 {[%clk 0:00:04]} 30. Nbd6 {[%clk 0:00:08]}  Rxb2 {[%clk 0:00:03]} 31. Nc4 {[%clk 0:00:08]}  Rb5 {[%clk 0:00:02]} 32. Nxe5 {[%clk 0:00:09]}  Rxe5 {[%clk 0:00:03]} 33. Ne7+ {[%clk 0:00:05]}  Kh7 {[%clk 0:00:03]} 34. Nxc6 {[%clk 0:00:04]}  Rb5 {[%clk 0:00:03]} 35. Nd4 {[%clk 0:00:04]}  Nxd4 {[%clk 0:00:03]} 36. Rxd4 {[%clk 0:00:04]}  Re5 {[%clk 0:00:02]} 37. Bf4 {[%clk 0:00:04]}  Re6 {[%clk 0:00:03]} 38. e5 {[%clk 0:00:04]}  Ng8 {[%clk 0:00:03]} 39. Bd5 {[%clk 0:00:05]}  Ra6 {[%clk 0:00:02]} 40. Kf2 {[%clk 0:00:05]}  Ne7 {[%clk 0:00:03]} 41. Bf3 {[%clk 0:00:05]}  Ra2+ {[%clk 0:00:03]} 42. Kg3 {[%clk 0:00:05]}  Ra3 {[%clk 0:00:03]} 43. Rc4 {[%clk 0:00:05]}  Ra7 {[%clk 0:00:02]} 44. h4 {[%clk 0:00:05]}  Rd7 {[%clk 0:00:01]} 45. h5 {[%clk 0:00:04]}  Bc2 {[%clk 0:00:02]} 46. Rd4 {[%clk 0:00:04]}  Ra7 {[%clk 0:00:02]} 47. Rd2 {[%clk 0:00:04]}  Bb1 {[%clk 0:00:02]} 48. Rd1 {[%clk 0:00:04]}  Bc2 {[%clk 0:00:03]} 49. Rd2 {[%clk 0:00:05]}  Bb1 {[%clk 0:00:03]} 50. c4 {[%clk 0:00:05]}  Rc7 {[%clk 0:00:03]} 51. Rb2 {[%clk 0:00:05]}  Bd3 {[%clk 0:00:03]} 52. Rb3 {[%clk 0:00:04]}  Bxc4 {[%clk 0:00:02]} 53. Rc3 {[%clk 0:00:04]}  Rc8 {[%clk 0:00:02]} 54. Be4+ {[%clk 0:00:04]}  g6 {[%clk 0:00:02]} 55. Ra3 {[%clk 0:00:02]}  Be6 {[%clk 0:00:02]} 56. Ra7 {[%clk 0:00:02]}  Re8 {[%clk 0:00:02]} 57. hxg6+ {[%clk 0:00:02]}  Nxg6 {[%clk 0:00:03]} 58. Be3 {[%clk 0:00:02]}  Kg7 {[%clk 0:00:03]} 59. Ra5 {[%clk 0:00:02]}  Rd8 {[%clk 0:00:04]} 60. Bf5 {[%clk 0:00:03]}  Ne7 {[%clk 0:00:03]} 61. Be4 {[%clk 0:00:03]}  Bd5 {[%clk 0:00:03]} 62. Bf5 {[%clk 0:00:03]}  Be6 {[%clk 0:00:04]} 63. Be4 {[%clk 0:00:02]}  Rd7 {[%clk 0:00:04]} 64. Bc5 {[%clk 0:00:03]}  Nd5 {[%clk 0:00:04]} 65. Bd6 {[%clk 0:00:03]}  Nb6 {[%clk 0:00:04]} 66. Bf3 {[%clk 0:00:03]}  Nc4 {[%clk 0:00:04]} 67. Ra6 {[%clk 0:00:03]}  Rd8 {[%clk 0:00:04]} 68. Kf4 {[%clk 0:00:03]}  Rc8 {[%clk 0:00:04]} 69. Ra7 {[%clk 0:00:03]}  Nb6 {[%clk 0:00:03]} 70. Rb7 {[%clk 0:00:03]}  Nd5+ {[%clk 0:00:03]} 71. Bxd5 {[%clk 0:00:04]}  Bxd5 {[%clk 0:00:04]} 72. Rb4 {[%clk 0:00:04]}  Rc2 {[%clk 0:00:04]} 73. Kg3 {[%clk 0:00:03]}  Rc3+ {[%clk 0:00:04]} 74. Kh4 {[%clk 0:00:03]}  Bg2 {[%clk 0:00:04]} 75. g5 {[%clk 0:00:03]}  h5 {[%clk 0:00:03]} 76. g6 {[%clk 0:00:02]}  Kxg6 {[%clk 0:00:02]} 0-1


[Site "https://www.chess.com"]

[Event "Titled Tuesday Blitz October 25 Early 2022"]
[White "Pranav, V"]
[Black "Peyrer, Konstantin"]
[WhiteFideId "25060783"]
[BlackFideId "1640879"]
[WhiteElo "2430"]
[BlackElo "2415"]
[Result "1-0"]
[Round "07"]
[TimeControl "180+1"]
[Date "2022.10.25"]
[WhiteClock "0:00:21"]
[BlackClock "0:00:02"]

1. e4 {[%clk 0:03:00]}  c6 {[%clk 0:02:56]} 2. Nc3 {[%clk 0:03:00]}  d5 {[%clk 0:02:55]} 3. Nf3 {[%clk 0:03:01]}  dxe4 {[%clk 0:02:54]} 4. Nxe4 {[%clk 0:03:01]}  Nf6 {[%clk 0:02:54]} 5. Qe2 {[%clk 0:03:02]}  Nxe4 {[%clk 0:02:54]} 6. Qxe4 {[%clk 0:03:03]}  Nd7 {[%clk 0:02:54]} 7. d4 {[%clk 0:03:02]}  Nf6 {[%clk 0:02:54]} 8. Qd3 {[%clk 0:03:03]}  g6 {[%clk 0:02:54]} 9. Bf4 {[%clk 0:03:00]}  Bg7 {[%clk 0:02:53]} 10. O-O-O {[%clk 0:03:00]}  Bf5 {[%clk 0:02:51]} 11. Qe2 {[%clk 0:03:00]}  Qa5 {[%clk 0:02:48]} 12. Kb1 {[%clk 0:02:59]}  O-O {[%clk 0:02:47]} 13. Ne5 {[%clk 0:02:59]}  Nd5 {[%clk 0:02:45]} 14. Bd2 {[%clk 0:02:56]}  Qa4 {[%clk 0:02:38]} 15. Qc4 {[%clk 0:02:47]}  Qxc4 {[%clk 0:02:36]} 16. Bxc4 {[%clk 0:02:48]}  Rfd8 {[%clk 0:02:36]} 17. Rhe1 {[%clk 0:02:44]}  Kf8 {[%clk 0:02:32]} 18. a3 {[%clk 0:02:41]}  Be6 {[%clk 0:02:29]} 19. Bb3 {[%clk 0:02:36]}  a5 {[%clk 0:02:26]} 20. h4 {[%clk 0:02:34]}  Nc7 {[%clk 0:02:24]} 21. Bxe6 {[%clk 0:02:23]}  Nxe6 {[%clk 0:02:25]} 22. c3 {[%clk 0:02:24]}  c5 {[%clk 0:02:15]} 23. dxc5 {[%clk 0:02:14]}  Nxc5 {[%clk 0:02:15]} 24. Be3 {[%clk 0:01:48]}  Bxe5 {[%clk 0:02:13]} 25. Bxc5 {[%clk 0:01:47]}  Bf6 {[%clk 0:02:13]} 26. g3 {[%clk 0:01:45]}  Rdc8 {[%clk 0:02:12]} 27. Rd5 {[%clk 0:01:40]}  Ra6 {[%clk 0:02:04]} 28. a4 {[%clk 0:01:38]}  Rac6 {[%clk 0:01:45]} 29. Ba3 {[%clk 0:01:37]}  b6 {[%clk 0:01:36]} 30. Rd7 {[%clk 0:01:37]}  Ke8 {[%clk 0:01:31]} 31. Rb7 {[%clk 0:01:23]}  R8c7 {[%clk 0:01:13]} 32. Rb8+ {[%clk 0:01:23]}  Rc8 {[%clk 0:01:13]} 33. Rxc8+ {[%clk 0:01:18]}  Rxc8 {[%clk 0:01:14]} 34. Kc2 {[%clk 0:01:18]}  Kd7 {[%clk 0:01:10]} 35. Rd1+ {[%clk 0:01:18]}  Kc6 {[%clk 0:01:08]} 36. Kb3 {[%clk 0:01:16]}  h5 {[%clk 0:01:02]} 37. Kc4 {[%clk 0:01:15]}  Rc7 {[%clk 0:00:55]} 38. Rd8 {[%clk 0:01:14]}  b5+ {[%clk 0:00:42]} 39. axb5+ {[%clk 0:01:05]}  Kb6+ {[%clk 0:00:42]} 40. Kb3 {[%clk 0:00:53]}  Kxb5 {[%clk 0:00:41]} 41. Rb8+ {[%clk 0:00:51]}  Kc6 {[%clk 0:00:36]} 42. Ka4 {[%clk 0:00:50]}  Rd7 {[%clk 0:00:29]} 43. Kxa5 {[%clk 0:00:41]}  Rd2 {[%clk 0:00:22]} 44. Rb6+ {[%clk 0:00:35]}  Kc7 {[%clk 0:00:20]} 45. Bc5 {[%clk 0:00:29]}  Rd5 {[%clk 0:00:19]} 46. Kb5 {[%clk 0:00:27]}  e6 {[%clk 0:00:18]} 47. Ra6 {[%clk 0:00:27]}  Kb8 {[%clk 0:00:11]} 48. Kc6 {[%clk 0:00:27]}  Be5 {[%clk 0:00:11]} 49. f4 {[%clk 0:00:25]}  Bc7 {[%clk 0:00:11]} 50. b4 {[%clk 0:00:20]}  Rd3 {[%clk 0:00:03]} 51. Ba7+ {[%clk 0:00:20]}  Kc8 {[%clk 0:00:02]} 52. Bd4 {[%clk 0:00:21]} 1-0


[Site "https://www.chess.com"]

[Event "Titled Tuesday Blitz October 25 Early 2022"]
[White "Pultinevicius, Paulius"]
[Black "Shankland, Sam"]
[WhiteFideId "12809390"]
[BlackFideId "2004887"]
[WhiteElo "2500"]
[BlackElo "2612"]
[Result "0-1"]
[Round "07"]
[TimeControl "180+1"]
[Date "2022.10.25"]
[WhiteClock "0:00:10"]
[BlackClock "0:00:54"]

1. d4 {[%clk 0:03:00]}  d5 {[%clk 0:02:59]} 2. c4 {[%clk 0:03:01]}  c6 {[%clk 0:03:00]} 3. Nf3 {[%clk 0:03:00]}  Nf6 {[%clk 0:02:59]} 4. Qc2 {[%clk 0:03:00]}  dxc4 {[%clk 0:02:58]} 5. Qxc4 {[%clk 0:02:59]}  Bf5 {[%clk 0:02:58]} 6. g3 {[%clk 0:02:49]}  e6 {[%clk 0:02:58]} 7. Bg2 {[%clk 0:02:48]}  Be7 {[%clk 0:02:58]} 8. O-O {[%clk 0:02:48]}  O-O {[%clk 0:02:58]} 9. e3 {[%clk 0:02:48]}  Nbd7 {[%clk 0:02:57]} 10. Qe2 {[%clk 0:02:48]}  Bg6 {[%clk 0:02:52]} 11. b3 {[%clk 0:02:37]}  a5 {[%clk 0:02:47]} 12. Nc3 {[%clk 0:02:36]}  Nd5 {[%clk 0:02:46]} 13. Bb2 {[%clk 0:02:36]}  Nxc3 {[%clk 0:02:44]} 14. Bxc3 {[%clk 0:02:37]}  a4 {[%clk 0:02:44]} 15. b4 {[%clk 0:02:27]}  a3 {[%clk 0:02:42]} 16. b5 {[%clk 0:02:26]}  Be4 {[%clk 0:02:40]} 17. Nd2 {[%clk 0:02:20]}  Bxg2 {[%clk 0:02:39]} 18. Kxg2 {[%clk 0:02:21]}  Nb6 {[%clk 0:02:21]} 19. bxc6 {[%clk 0:02:14]}  Qd5+ {[%clk 0:02:20]} 20. e4 {[%clk 0:02:07]}  Qxc6 {[%clk 0:02:20]} 21. Rfc1 {[%clk 0:02:08]}  Qd7 {[%clk 0:02:19]} 22. Rab1 {[%clk 0:02:07]}  Na4 {[%clk 0:02:18]} 23. Ba1 {[%clk 0:02:03]}  Rfc8 {[%clk 0:02:17]} 24. Nc4 {[%clk 0:01:49]}  f6 {[%clk 0:02:04]} 25. Qg4 {[%clk 0:01:43]}  b5 {[%clk 0:02:02]} 26. Ne3 {[%clk 0:01:38]}  b4 {[%clk 0:01:41]} 27. d5 {[%clk 0:01:34]}  Kf7 {[%clk 0:01:41]} 28. dxe6+ {[%clk 0:01:20]}  Qxe6 {[%clk 0:01:41]} 29. Nf5 {[%clk 0:01:20]}  Bf8 {[%clk 0:01:41]} 30. Rxc8 {[%clk 0:01:20]}  Rxc8 {[%clk 0:01:40]} 31. Rd1 {[%clk 0:00:56]}  Nc5 {[%clk 0:01:28]} 32. Kg1 {[%clk 0:00:38]}  g6 {[%clk 0:01:23]} 33. Qh4 {[%clk 0:00:31]}  gxf5 {[%clk 0:01:22]} 34. Qxh7+ {[%clk 0:00:26]}  Bg7 {[%clk 0:01:22]} 35. exf5 {[%clk 0:00:23]}  Qe2 {[%clk 0:01:22]} 36. Qg6+ {[%clk 0:00:19]}  Kf8 {[%clk 0:01:19]} 37. Rc1 {[%clk 0:00:19]}  Qd2 {[%clk 0:00:58]} 38. Bxf6 {[%clk 0:00:16]}  Qxc1+ {[%clk 0:00:56]} 39. Kg2 {[%clk 0:00:16]}  Bxf6 {[%clk 0:00:56]} 40. Qxf6+ {[%clk 0:00:17]}  Ke8 {[%clk 0:00:57]} 41. Qe5+ {[%clk 0:00:14]}  Kd7 {[%clk 0:00:57]} 42. f6 {[%clk 0:00:13]}  Qc4 {[%clk 0:00:56]} 43. Qf5+ {[%clk 0:00:11]}  Qe6 {[%clk 0:00:55]} 44. Qh7+ {[%clk 0:00:10]}  Kc6 {[%clk 0:00:54]} 0-1


[Site "https://www.chess.com"]

[Event "Titled Tuesday Blitz October 25 Early 2022"]
[White "Sokolovsky, Yahli"]
[Black "Svane, Rasmus"]
[WhiteFideId "2820242"]
[BlackFideId "4657101"]
[WhiteElo "2316"]
[BlackElo "2674"]
[Result "0-1"]
[Round "07"]
[TimeControl "180+1"]
[Date "2022.10.25"]
[WhiteClock "0:00:56"]
[BlackClock "0:01:33"]

1. b3 {[%clk 0:03:00]}  d5 {[%clk 0:02:59]} 2. Bb2 {[%clk 0:03:01]}  Bf5 {[%clk 0:02:59]} 3. Nf3 {[%clk 0:03:00]}  e6 {[%clk 0:02:59]} 4. d4 {[%clk 0:03:00]}  Nf6 {[%clk 0:02:59]} 5. e3 {[%clk 0:03:01]}  Bd6 {[%clk 0:02:59]} 6. Bd3 {[%clk 0:03:01]}  O-O {[%clk 0:02:59]} 7. O-O {[%clk 0:02:59]}  c6 {[%clk 0:02:59]} 8. c4 {[%clk 0:02:59]}  Nbd7 {[%clk 0:02:59]} 9. Qc2 {[%clk 0:02:59]}  Bxd3 {[%clk 0:02:56]} 10. Qxd3 {[%clk 0:03:00]}  Ne4 {[%clk 0:02:56]} 11. Nfd2 {[%clk 0:02:33]}  f5 {[%clk 0:02:56]} 12. f4 {[%clk 0:02:34]}  g5 {[%clk 0:02:48]} 13. Ba3 {[%clk 0:02:32]}  Bxa3 {[%clk 0:02:33]} 14. Nxa3 {[%clk 0:02:32]}  Qe7 {[%clk 0:02:34]} 15. Nc2 {[%clk 0:02:23]}  Rf7 {[%clk 0:02:31]} 16. Ne1 {[%clk 0:02:17]}  Raf8 {[%clk 0:02:27]} 17. Nef3 {[%clk 0:02:16]}  Rg7 {[%clk 0:02:26]} 18. fxg5 {[%clk 0:02:12]}  Nxg5 {[%clk 0:02:26]} 19. Nxg5 {[%clk 0:02:08]}  Qxg5 {[%clk 0:02:23]} 20. Rf2 {[%clk 0:02:09]}  Nf6 {[%clk 0:02:24]} 21. Nf3 {[%clk 0:02:03]}  Qh6 {[%clk 0:02:23]} 22. cxd5 {[%clk 0:01:57]}  cxd5 {[%clk 0:02:15]} 23. Rc1 {[%clk 0:01:56]}  Kh8 {[%clk 0:02:12]} 24. Rfc2 {[%clk 0:01:51]}  Ng4 {[%clk 0:02:10]} 25. Rc8 {[%clk 0:01:40]}  Rxc8 {[%clk 0:02:06]} 26. Rxc8+ {[%clk 0:01:41]}  Rg8 {[%clk 0:02:06]} 27. Rc3 {[%clk 0:01:38]}  Qg7 {[%clk 0:01:49]} 28. Qc2 {[%clk 0:01:28]}  b5 {[%clk 0:01:42]} 29. b4 {[%clk 0:01:22]}  a6 {[%clk 0:01:42]} 30. h3 {[%clk 0:01:18]}  Nf6 {[%clk 0:01:36]} 31. Rc7 {[%clk 0:01:14]}  Qg3 {[%clk 0:01:36]} 32. Qf2 {[%clk 0:00:56]}  Qxc7 {[%clk 0:01:33]} 0-1


[Site "https://www.chess.com"]

[Event "Titled Tuesday Blitz October 25 Early 2022"]
[White "Vachylia, Andrii"]
[Black "Kollars, Dmitrij"]
[WhiteFideId "14137224"]
[BlackFideId "12909572"]
[WhiteElo "2318"]
[BlackElo "2584"]
[Result "0-1"]
[Round "07"]
[TimeControl "180+1"]
[Date "2022.10.25"]
[WhiteClock "0:00:31"]
[BlackClock "0:01:27"]

1. e4 {[%clk 0:02:47]}  c5 {[%clk 0:02:59]} 2. Nf3 {[%clk 0:02:47]}  d6 {[%clk 0:02:59]} 3. d4 {[%clk 0:02:47]}  cxd4 {[%clk 0:03:00]} 4. Nxd4 {[%clk 0:02:48]}  Nf6 {[%clk 0:03:00]} 5. Nc3 {[%clk 0:02:48]}  Nc6 {[%clk 0:03:00]} 6. Bg5 {[%clk 0:02:48]}  e6 {[%clk 0:03:00]} 7. Qd2 {[%clk 0:02:47]}  a6 {[%clk 0:02:59]} 8. O-O-O {[%clk 0:02:46]}  Bd7 {[%clk 0:02:59]} 9. f4 {[%clk 0:02:46]}  Be7 {[%clk 0:02:59]} 10. Nf3 {[%clk 0:02:46]}  b5 {[%clk 0:02:59]} 11. Bxf6 {[%clk 0:02:45]}  gxf6 {[%clk 0:03:00]} 12. Kb1 {[%clk 0:02:43]}  b4 {[%clk 0:02:58]} 13. Ne2 {[%clk 0:02:43]}  a5 {[%clk 0:02:58]} 14. f5 {[%clk 0:02:40]}  Qb6 {[%clk 0:02:51]} 15. Nf4 {[%clk 0:02:38]}  Qc5 {[%clk 0:02:48]} 16. g3 {[%clk 0:02:28]}  Ne5 {[%clk 0:02:44]} 17. Nd4 {[%clk 0:02:22]}  exf5 {[%clk 0:02:36]} 18. exf5 {[%clk 0:02:19]}  Rc8 {[%clk 0:02:30]} 19. Bg2 {[%clk 0:02:17]}  h5 {[%clk 0:02:26]} 20. Nd5 {[%clk 0:02:10]}  Bd8 {[%clk 0:02:26]} 21. Rhe1 {[%clk 0:01:58]}  Kf8 {[%clk 0:02:26]} 22. Nb3 {[%clk 0:01:52]}  Qa7 {[%clk 0:02:17]} 23. Nxf6 {[%clk 0:01:10]}  Bxf6 {[%clk 0:02:16]} 24. Qxd6+ {[%clk 0:01:10]}  Kg7 {[%clk 0:02:13]} 25. Rxe5 {[%clk 0:01:10]}  Rhd8 {[%clk 0:01:52]} 26. Rxa5 {[%clk 0:00:58]}  Qf2 {[%clk 0:01:49]} 27. Qd2 {[%clk 0:00:57]}  Bxf5 {[%clk 0:01:27]} 28. Qxf2 {[%clk 0:00:31]}  Rxd1+ {[%clk 0:01:27]} 29. Nc1 {[%clk 0:00:31]}  Bg5 {[%clk 0:01:28]} 30. a4 {[%clk 0:00:31]}  b3 {[%clk 0:01:27]} 0-1


[Site "https://www.chess.com"]

[Event "Titled Tuesday Blitz October 25 Early 2022"]
[White "Volkov, Maksim"]
[Black "Gharibyan, Mamikon"]
[WhiteFideId "54123070"]
[BlackFideId "13308300"]
[WhiteElo "2257"]
[BlackElo "2378"]
[Result "0-1"]
[Round "07"]
[TimeControl "180+1"]
[Date "2022.10.25"]
[WhiteClock "0:00:04"]
[BlackClock "0:00:17"]

1. d4 {[%clk 0:03:00]}  g6 {[%clk 0:02:57]} 2. c4 {[%clk 0:03:01]}  Bg7 {[%clk 0:02:58]} 3. Nf3 {[%clk 0:03:00]}  c5 {[%clk 0:02:56]} 4. d5 {[%clk 0:02:58]}  d6 {[%clk 0:02:54]} 5. g3 {[%clk 0:02:47]}  Nf6 {[%clk 0:02:53]} 6. Nc3 {[%clk 0:02:46]}  O-O {[%clk 0:02:52]} 7. Bg2 {[%clk 0:02:47]}  a6 {[%clk 0:02:37]} 8. a4 {[%clk 0:02:42]}  e6 {[%clk 0:02:35]} 9. O-O {[%clk 0:02:39]}  exd5 {[%clk 0:02:35]} 10. cxd5 {[%clk 0:02:40]}  Re8 {[%clk 0:02:35]} 11. Bf4 {[%clk 0:02:38]}  Qc7 {[%clk 0:02:31]} 12. Nd2 {[%clk 0:02:23]}  Nh5 {[%clk 0:02:29]} 13. Nc4 {[%clk 0:02:13]}  Nxf4 {[%clk 0:02:28]} 14. gxf4 {[%clk 0:02:14]}  Nd7 {[%clk 0:02:26]} 15. a5 {[%clk 0:02:11]}  b5 {[%clk 0:02:23]} 16. axb6 {[%clk 0:02:11]}  Nxb6 {[%clk 0:02:23]} 17. Na5 {[%clk 0:02:11]}  Bd7 {[%clk 0:02:20]} 18. Re1 {[%clk 0:02:08]}  Rab8 {[%clk 0:01:59]} 19. e4 {[%clk 0:02:03]}  Bb5 {[%clk 0:01:49]} 20. Nxb5 {[%clk 0:01:53]}  axb5 {[%clk 0:01:44]} 21. e5 {[%clk 0:01:53]}  Nc4 {[%clk 0:01:32]} 22. Nc6 {[%clk 0:01:33]}  dxe5 {[%clk 0:01:21]} 23. Nxb8 {[%clk 0:00:58]}  Qxb8 {[%clk 0:01:11]} 24. b3 {[%clk 0:00:42]}  Nd6 {[%clk 0:01:09]} 25. fxe5 {[%clk 0:00:39]}  Bxe5 {[%clk 0:01:09]} 26. Ra6 {[%clk 0:00:36]}  c4 {[%clk 0:00:42]} 27. bxc4 {[%clk 0:00:32]}  bxc4 {[%clk 0:00:43]} 28. Rc6 {[%clk 0:00:23]}  c3 {[%clk 0:00:42]} 29. Kh1 {[%clk 0:00:18]}  Kg7 {[%clk 0:00:40]} 30. Qc1 {[%clk 0:00:14]}  Qb4 {[%clk 0:00:37]} 31. Qc2 {[%clk 0:00:12]}  Qf4 {[%clk 0:00:36]} 32. Kg1 {[%clk 0:00:10]}  Qxh2+ {[%clk 0:00:33]} 33. Kf1 {[%clk 0:00:10]}  Rb8 {[%clk 0:00:25]} 34. Qe2 {[%clk 0:00:06]}  Bf6 {[%clk 0:00:22]} 35. Qa6 {[%clk 0:00:06]}  Nf5 {[%clk 0:00:18]} 36. d6 {[%clk 0:00:05]}  Rb2 {[%clk 0:00:17]} 37. d7 {[%clk 0:00:04]}  Ng3+ {[%clk 0:00:17]} 0-1


[Site "https://www.chess.com"]